[Event "Turkish Super League 2019"]
[Site "Konya"]
[Date "2019.07.28"]
[Round "13"]
[White "Tezcan, Emre"]
[Black "Karagollu, Ahmet"]
[Result "1/2-1/2"]
[ECO "C96"]
[WhiteElo "2082"]
[BlackElo "2135"]
[Annotator "NA"]
[PlyCount "64"]
[EventDate "2019.07.17"]
[EventType "team-tourn"]
[EventCountry "TUR"]
[SourceTitle "playchess.com"]
[Source "ChessBase"]
[SourceQuality "1"]
[TimeControl "40/5400+30:1800+30"]

1. e4 {[%emt 0:00:30]} Nc6 {[%emt 0:01:30]} 2. Nf3 {[%emt 0:00:30]} e5 {[%emt 0:00:00]} 3. Bb5 {[%emt 0:01:30]} a6 {[%emt 0:00:00]} 4. Ba4 {[%emt 0:01:30]} Nf6 {[%emt 0:00:30]} 5. O-O {[%emt 0:00:00]} Be7 {[%emt 0:00:30]} 6. Re1 {[%emt 0:01:00]} b5 {[%emt 0:00:30]} 7. Bb3 {[%emt 0:00:00]} O-O {[%emt 0:00:00]} 8. c3 {[%emt 0:01:00]} d6 {[%emt 0:00:00]} 9. h3 {[%emt 0:00:30]} Na5 {[%emt 0:00:30]} 10. Bc2 {[%emt 0:00:30]} c5 {[%emt 0:00:30]} 11. d4 {[%emt 0:00:00]} cxd4 {[%emt 0:03:30]} 12. cxd4 {[%emt 0:00:00]} Nc6 {[%emt 0:00:00]} 13. Nc3 {[%emt 0:01:30]} h6 {[%emt 0:09:00]} 14. d5 {[%emt 0:02:30]} Nb8 {[%emt 0:02:30]} 15. Be3 {[%emt 0:03:30]} Nbd7 {[%emt 0:01:30]} 16. Qd2 {[%emt 0:01:30]} Re8 {[%emt 0:01:30]} 17. a4 {[%emt 0:03:30]} b4 {[%emt 0:02:30]} 18. Ne2 {[%emt 0:00:30]} a5 {[%emt 0:01:30]} 19. Ng3 {[%emt 0:00:30]} Nf8 {[%emt 0:02:30]} 20. Bd3 {[%emt 0:10:30]} Ng6 {[%emt 0:04:30]} 21. Bb5 {[%emt 0:01:30]} Bd7 {[%emt 0:02:30]} 22. Qd3 {[%emt 0:05:30]} Bf8 {[%emt 0:10:30]} 23. Nd2 {[%emt 0:02:30]} Nf4 {[%emt 0:02:30]} 24. Bxf4 {[%emt 0:01:30]} exf4 {[%emt 0:00:30]} 25. Ne2 {[%emt 0:02:30]} Bxb5 {[%emt 0:01:30]} 26. axb5 {[%emt 0:00:30]} Nd7 {[%emt 0:00:00]} 27. Nxf4 {[%emt 0:01:30]} Qf6 {[%emt 0:02:00]} 28. Ne2 {[%emt 0:08:30]} Qxb2 {[%emt 0:01:30]} 29. Nc4 {[%emt 0:01:30]} Qf6 {[%emt 0:00:30]} 30. Rxa5 {[%emt 0:01:30]} Rxa5 {[%emt 0:06:30]} 31. Nxa5 {[%emt 0:00:00]} Nc5 {[%emt 0:00:00]} 32. Qd4 {[%emt 0:06:00]} Qd8 {[%emt 0:06:00]} 1/2-1/2

[Event "Turkish Super League 2019"]
[Site "Konya"]
[Date "2019.07.28"]
[Round "13"]
[White "Acar, Utku Cengiz"]
[Black "Gholami, Aryan"]
[Result "1/2-1/2"]
[ECO "B43"]
[WhiteElo "2079"]
[BlackElo "2532"]
[Annotator "ChessBase"]
[PlyCount "82"]
[EventDate "2019.07.17"]
[EventType "team-tourn"]
[EventCountry "TUR"]
[SourceTitle "playchess.com"]
[Source "ChessBase"]
[SourceQuality "1"]
[TimeControl "40/5400+30:1800+30"]

1. e4 {[%emt 0:00:30]} c5 {[%emt 0:00:30]} 2. Nf3 {[%emt 0:01:30]} e6 {[%emt 0:00:30]} 3. d4 {[%emt 0:00:30]} cxd4 {[%emt 0:00:00]} 4. Nxd4 {[%emt 0:00:30]} a6 {[%emt 0:00:00]} 5. Nc3 {[%emt 0:00:30]} b5 {[%emt 0:00:00]} 6. Bd3 {[%emt 0:03:30]} Qb6 {[%emt 0:00:00]} 7. Nf3 {[%emt 0:03:30]} Bb7 {[%emt 0:03:30]} 8. O-O {[%emt 0:02:30]} Qc7 {[%emt 0:00:30]} 9. Re1 {[%emt 0:03:30]} b4 {[%emt 0:03:30]} 10. Na4 {[%emt 0:06:30]} Bc6 {[%emt 0:11:30]} 11. c4 {[%emt 0:02:30]} a5 {[%emt 0:02:30]} 12. Nd4 {[%emt 0:11:30]} Bxa4 {[%emt 0:02:30]} 13. Qxa4 {[%emt 0:00:30]} Bc5 {[%emt 0:02:30]} 14. Nb5 {[%emt 0:07:30]} Qb6 {[%emt 0:00:30]} 15. Bf4 {[%emt 0:05:30]} Na6 {[%emt 0:02:30]} 16. Bg3 {[%emt 0:03:30]} Nf6 {[%emt 0:03:30]} 17. Qc2 {[%emt 0:04:30]} Nh5 {[%emt 0:04:30]} 18. e5 {[%emt 0:02:30]} Nxg3 {[%emt 0:04:30]} 19. hxg3 {[%emt 0:00:30]} g6 {[%emt 0:00:30]} 20. Rad1 {[%emt 0:00:30]} O-O {[%emt 0:00:30]} 21. Be4 {[%emt 0:00:30]} Rad8 {[%emt 0:00:00]} 22. Nd6 {[%emt 0:10:30]} Nb8 {[%emt 0:06:00]} 23. Re2 {[%emt 0:04:30]} Kg7 {[%emt 0:03:30]} 24. Bf3 {[%emt 0:06:18]} f6 {[%emt 0:01:30]} 25. exf6+ {[%emt 0:00:30]} Rxf6 {[%emt 0:00:30]} 26. Ne4 {[%emt 0:00:00]} Rf5 {[%emt 0:01:30]} 27. Red2 {[%emt 0:07:06]} Rdf8 {[%emt 0:02:30]} 28. b3 {[%emt 0:01:19]} Be7 {[%emt 0:01:30]} 29. Bg4 {[%emt 0:05:25]} R5f7 {[%emt 0:01:30]} 30. Kh2 {[%emt 0:02:33]} Qc7 {[%emt 0:04:30]} 31. Qb2+ {[%emt 0:02:11]} Kg8 {[%emt 0:00:30]} 32. Qd4 {[%emt 0:02:06]} Rg7 {[%emt 0:02:30]} 33. Qe3 {[%emt 0:00:35]} Kh8 {[%emt 0:02:30]} 34. Bf3 {[%emt 0:00:50]} g5 {[%emt 0:01:30]} 35. Qe2 {[%emt 0:00:30]} Qe5 {[%emt 0:06:30]} 36. Kg1 {[%emt 0:00:27]} Rfg8 {[%emt 0:02:30]} 37. g4 {[%emt 0:00:30]} Bd8 {[%emt 0:02:30]} 38. Nd6 {[%emt 0:00:40]} Qf6 {[%emt 0:00:30]} 39. Ne4 {[%emt 0:00:28]} Qe5 {[%emt 0:03:46]} 40. Nd6 {[%emt 0:00:00]} Qxe2 {[%emt 0:02:19]} 41. Rxe2 {[%emt 0:02:32]} Rf8 {[%emt 0:09:25]} 1/2-1/2

[Event "Turkish Super League 2019"]
[Site "Konya"]
[Date "2019.07.28"]
[Round "13"]
[White "Dolgun, Can"]
[Black "Samani, Yamac"]
[Result "0-1"]
[ECO "B52"]
[WhiteElo "2064"]
[BlackElo "2266"]
[Annotator "NA"]
[PlyCount "98"]
[EventDate "2019.07.17"]
[EventType "team-tourn"]
[EventCountry "TUR"]
[SourceTitle "playchess.com"]
[Source "ChessBase"]
[SourceQuality "1"]
[TimeControl "40/5400+30:1800+30"]

1. e4 {[%emt 0:00:30]} c5 {[%emt 0:00:30]} 2. Nf3 {[%emt 0:00:00]} d6 {[%emt 0:00:00]} 3. Bb5+ {[%emt 0:00:00]} Bd7 {[%emt 0:00:00]} 4. Bxd7+ {[%emt 0:00:30]} Nxd7 {[%emt 0:00:00]} 5. d4 {[%emt 0:00:30]} cxd4 {[%emt 0:00:00]} 6. Qxd4 {[%emt 0:00:00]} Ngf6 {[%emt 0:01:30]} 7. Bg5 {[%emt 0:00:00]} g6 {[%emt 0:01:30]} 8. Bxf6 {[%emt 0:01:30]} Nxf6 {[%emt 0:00:00]} 9. Qa4+ {[%emt 0:01:30]} Qd7 {[%emt 0:01:00]} 10. Qxd7+ {[%emt 0:00:30]} Nxd7 {[%emt 0:00:30]} 11. Nbd2 {[%emt 0:00:30]} Bg7 {[%emt 0:00:00]} 12. c3 {[%emt 0:00:30]} O-O {[%emt 0:01:00]} 13. Ke2 {[%emt 0:01:30]} Rab8 {[%emt 0:00:00]} 14. Rac1 {[%emt 0:05:30]} b5 {[%emt 0:00:00]} 15. b3 {[%emt 0:00:30]} a5 {[%emt 0:01:30]} 16. c4 {[%emt 0:08:30]} b4 {[%emt 0:00:30]} 17. Ne1 {[%emt 0:00:30]} a4 {[%emt 0:05:30]} 18. Nd3 {[%emt 0:02:30]} axb3 {[%emt 0:00:30]} 19. axb3 {[%emt 0:00:00]} Bc3 {[%emt 0:01:30]} 20. Nb1 {[%emt 0:02:00]} Bd4 {[%emt 0:00:30]} 21. Rc2 {[%emt 0:03:30]} f5 {[%emt 0:06:30]} 22. exf5 {[%emt 0:01:30]} Rxf5 {[%emt 0:00:30]} 23. Ra2 {[%emt 0:02:30]} Nc5 {[%emt 0:02:30]} 24. Nd2 {[%emt 0:01:30]} Nxd3 {[%emt 0:01:30]} 25. Kxd3 {[%emt 0:00:30]} Bxf2 {[%emt 0:00:30]} 26. Ne4 {[%emt 0:06:30]} Bb6 {[%emt 0:00:30]} 27. Rha1 {[%emt 0:03:30]} d5 {[%emt 0:01:30]} 28. Nd2 {[%emt 0:02:30]} dxc4+ {[%emt 0:02:30]} 29. Nxc4 {[%emt 0:00:00]} Rd8+ {[%emt 0:01:30]} 30. Ke2 {[%emt 0:00:00]} Bd4 {[%emt 0:02:30]} 31. Rf1 {[%emt 0:01:30]} Rxf1 {[%emt 0:00:30]} 32. Kxf1 {[%emt 0:03:30]} e5 {[%emt 0:03:30]} 33. Re2 {[%emt 0:02:30]} Ra8 {[%emt 0:03:30]} 34. Re4 {[%emt 0:01:30]} Rf8+ {[%emt 0:03:30]} 35. Ke1 {[%emt 0:00:30]} Kg7 {[%emt 0:01:30]} 36. Re2 {[%emt 0:10:30]} Ra8 {[%emt 0:01:30]} 37. Kf1 {[%emt 0:00:30]} Kf6 {[%emt 0:00:30]} 38. Rd2 {[%emt 0:01:30]} Kf5 {[%emt 0:02:30]} 39. Ke2 {[%emt 0:00:00]} Ke4 {[%emt 0:01:30]} 40. Nd6+ {[%emt 0:00:00]} Kd5 {[%emt 0:00:00]} 41. Nc4 {[%emt 0:01:30]} Rf8 {[%emt 0:00:00]} 42. Kd3 {[%emt 0:01:30]} e4+ {[%emt 0:03:30]} 43. Ke2 {[%emt 0:02:30]} Rf2+ {[%emt 0:02:30]} 44. Ke1 {[%emt 0:00:30]} Rxd2 {[%emt 0:00:30]} 45. Kxd2 {[%emt 0:00:00]} Bg1 {[%emt 0:00:30]} 46. h3 {[%emt 0:08:00]} Kd4 {[%emt 0:00:00]} 47. Na5 {[%emt 0:01:30]} e3+ {[%emt 0:04:00]} 48. Kc2 {[%emt 0:02:30]} Bf2 {[%emt 0:02:30]} 49. Kd1 {[%emt 0:01:30]} Kd3 {[%emt 0:00:30]} 0-1

[Event "Turkish Super League 2019"]
[Site "Konya"]
[Date "2019.07.28"]
[Round "13"]
[White "Demirel, Yusuf Ziya"]
[Black "Sevgi, Volkan"]
[Result "0-1"]
[ECO "B14"]
[WhiteElo "1656"]
[BlackElo "2302"]
[Annotator "NA"]
[PlyCount "52"]
[EventDate "2019.07.17"]
[EventType "team-tourn"]
[EventCountry "TUR"]
[SourceTitle "playchess.com"]
[Source "ChessBase"]
[SourceQuality "1"]
[TimeControl "40/5400+30:1800+30"]

1. e4 {[%emt 0:00:30]} c6 {[%emt 0:00:30]} 2. d4 {[%emt 0:00:30]} d5 {[%emt 0:00:30]} 3. exd5 {[%emt 0:00:30]} cxd5 {[%emt 0:00:30]} 4. c4 {[%emt 0:00:30]} Nf6 {[%emt 0:00:30]} 5. Nc3 {[%emt 0:00:00]} Nc6 {[%emt 0:03:30]} 6. Nf3 {[%emt 0:00:00]} e6 {[%emt 0:00:30]} 7. c5 {[%emt 0:03:30]} Bd7 {[%emt 0:05:30]} 8. Bb5 {[%emt 0:04:30]} Ne4 {[%emt 0:05:30]} 9. Nxe4 {[%emt 0:08:30]} dxe4 {[%emt 0:01:30]} 10. Bxc6 {[%emt 0:02:30]} Bxc6 {[%emt 0:03:30]} 11. Ne5 {[%emt 0:02:30]} Qd5 {[%emt 0:06:30]} 12. Be3 {[%emt 0:07:30]} Be7 {[%emt 0:07:30]} 13. a4 {[%emt 0:08:30]} O-O {[%emt 0:05:30]} 14. b4 {[%emt 0:10:30]} f5 {[%emt 0:04:30]} 15. Qd2 {[%emt 0:15:30]} Bf6 {[%emt 0:06:30]} 16. b5 {[%emt 0:04:30]} Be8 {[%emt 0:01:30]} 17. Qa2 {[%emt 0:01:30]} Rd8 {[%emt 0:04:30]} 18. Qxd5 {[%emt 0:02:30]} Rxd5 {[%emt 0:00:30]} 19. f4 {[%emt 0:00:00]} exf3 {[%emt 0:00:00]} 20. Nxf3 {[%emt 0:00:00]} Bh5 {[%emt 0:01:00]} 21. O-O {[%emt 0:04:30]} Bxf3 {[%emt 0:00:30]} 22. Rxf3 {[%emt 0:00:00]} Rxd4 {[%emt 0:00:00]} 23. Rc1 {[%emt 0:08:16]} Rxa4 {[%emt 0:00:00]} 24. c6 {[%emt 0:00:45]} bxc6 {[%emt 0:00:30]} 25. bxc6 {[%emt 0:04:22]} Rc8 {[%emt 0:01:30]} 26. Bf4 {[%emt 0:04:45]} Rxf4 {[%emt 0:00:30]} 0-1